[Event "Susha Chess Blitz Women 2022"]
[Site "Shusha"]
[Date "2022.09.24"]
[Round "15"]
[White "Beydullayeva, Govhar"]
[Black "Mammadova, Gulnar"]
[Result "0-1"]
[ECO "A42"]
[WhiteElo "2346"]
[BlackElo "2382"]
[Annotator "TA"]
[PlyCount "98"]
[EventDate "2022.09.24"]
[EventType "tourn"]
[EventCountry "AZE"]
[SourceTitle "playchess.com"]
[Source "ChessBase"]
[SourceQuality "1"]
[TimeControl "180+2"]

{[%evp 9,98,43,35,16,32,15,19,-1,46,41,42,38,53,-41,-45,-41,-22,-29,-13,-86,-86,-86,-86,-78,20,-242,-225,-236,-243,-237,-221,-232,-171,-155,-149,-150,-150,-208,-208,-247,-247,-223,-243,-247,-247,-247,-247,-247,-85,-243,-243,-222,-235,-235,-220,-235,-235,-296,-255,-394,-333,-581,-570,-848,-848,-833,-833,-1215,-1138,-11243,-11243,-29971,-29972,-29972,-29973,-29970,-29970,-29978,-29979,-29978,-29978,-29978,-29979,-29982,-29983,-29985,-29986,-29987,-29985,-29985,-29986]} 1. d4 {[%emt 0:00:01]} g6 {[%emt 0:00:01]} 2. c4 {[%emt 0:00:03]} Bg7 {[%emt 0:00:01]} 3. Nc3 {[%emt 0:00:02]} d6 {[%emt 0:00:01]} 4. e4 {[%emt 0:00:11]} e5 {[%emt 0:00:01]} 5. d5 {[%emt 0:00:02]} a5 {[%emt 0:00:01]} 6. h4 {[%emt 0:00:09] A42: Modern Defence: Averbakh Variation.} h5 {[%emt 0:00:03]} 7. Nge2 {[%emt 0:00:14]} Na6 {[%emt 0:00:27] [#]} 8. Be3 $146 {[%emt 0:00:08] The position is equal.} ({Predecessor:} 8. Ng3 Bf6 9. Be3 Bg4 10. Be2 Bxe2 11. Qxe2 Bxh4 12. Qd2 Bf6 13. O-O-O Nc5 14. Bxc5 dxc5 {0-1 (61) Alivodic,D (2098)-Vantika,A (2171) Djenovici 2019}) 8... f5 {[%emt 0:00:08]} (8... Bh6 $11 {is more appropriate.}) 9. exf5 $14 {[%emt 0:00:04]} gxf5 {[%emt 0:00:01]} 10. Bg5 {[%emt 0:00:17]} Bf6 {[%emt 0:00:11]} 11. Bxf6 {[%emt 0:00:23]} (11. Qd2 $14) 11... Nxf6 $15 {[%emt 0:00:07]} 12. Ng3 {[%emt 0:00:01]} Qe7 {[%emt 0:00:06]} 13. Be2 {[%emt 0:00:02][%cal Rg3h5]} Qf7 {[%emt 0:00:17]} 14. Qc2 {[%emt 0:00:10]} (14. a3 $1 $11 {keeps the balance.}) 14... f4 $17 {[%emt 0:00:18]} 15. Nge4 {[%emt 0:00:02]} Nxe4 {[%emt 0:00:01]} 16. Nxe4 {[%emt 0:00:04] [#]} Bf5 {[%emt 0:00:01]} (16... Qg6 $1 $17) 17. Bd3 $2 {[%emt 0:00:44][%mdl 8192] White is now going downhill.} (17. Qa4+ $1 $11 {and White has nothing to worry.} Ke7 18. Ng5) 17... Nb4 $19 {[%emt 0:00:12]} 18. Qe2 {[%emt 0:00:03]} Nxd3+ {[%emt 0:00:31]} (18... Qg6 19. Bb1 $17) 19. Qxd3 {[%emt 0:00:01]} Qg6 {[%emt 0:00:01][%csl LRe4,LRg2]} 20. f3 {[%emt 0:00:01]} Bxe4 {[%emt 0:00:12]} ({Worse is} 20... Qxg2 21. O-O-O Bxe4 22. Qxe4 $17) 21. Qxe4 {[%emt 0:00:06]} Qxe4+ {[%emt 0:00:01]} 22. fxe4 {[%emt 0:00:00][%mdl 4096] Endgame KRR-KRR} Ke7 {[%emt 0:00:01]} 23. Kf2 {[%emt 0:00:09]} (23. Kf1 $17 {might work better.}) 23... Rhg8 {[%emt 0:00:03]} 24. Rh3 {[%emt 0:00:05]} Rg4 {[%emt 0:00:01]} 25. Rg1 {[%emt 0:00:22]} Rag8 {[%emt 0:00:02]} 26. Kf3 {[%emt 0:00:18]} Rg3+ {[%emt 0:00:17]} 27. Rxg3 {[%emt 0:00:01]} Rxg3+ {[%emt 0:00:02] KR-KR} ({Stronger than} 27... fxg3 28. Rh1 $11) 28. Kf2 {[%emt 0:00:00]} Rd3 $2 {[%emt 0:00:01]} (28... a4 $19 {Threatens to win with ...b6.} 29. Rd1 Re3) 29. Re1 $2 {[%emt 0:00:06]} (29. g3 $17) 29... a4 {[%emt 0:00:06]} 30. Re2 {[%emt 0:00:05]} b6 {[%emt 0:00:07]} 31. Rc2 {[%emt 0:00:02]} Rd1 {[%emt 0:00:05]} 32. Re2 {[%emt 0:00:06]} Ra1 {[%emt 0:00:03]} 33. a3 {[%emt 0:00:03]} Rc1 {[%emt 0:00:02]} 34. Re1 {[%emt 0:00:02]} (34. g3 {is the only way for White.} fxg3+ 35. Kg2) 34... Rxc4 {[%emt 0:00:02] [#] White must now prevent ...Rc2+.} 35. Kf3 $2 {[%emt 0:00:01]} (35. Re2 {only move.}) 35... Rc2 {[%emt 0:00:01]} 36. g3 {[%emt 0:00:01]} fxg3 {[%emt 0:00:03]} 37. Kxg3 {[%emt 0:00:01]} Rxb2 {Hoping for ...Rb3+.} 38. Rf1 {[%emt 0:00:01]} Rb3+ {[%emt 0:00:02]} 39. Kg2 {[%emt 0:00:01]} Rxa3 {[%emt 0:00:00] ( -> ...b5)} 40. Rf5 {[%emt 0:00:00]} Rb3 {[%emt 0:00:03] Black mates.} 41. Rxh5 {[%emt 0:00:01]} a3 {[%emt 0:00:02][%cal Ba4a3,Ba3a2][%mdl 32]} 42. Rh7+ {[%emt 0:00:01]} Kf6 {[%emt 0:00:09]} 43. Rxc7 {[%emt 0:00:01]} Rb5 {[%emt 0:00:06]} 44. Rc1 {[%emt 0:00:09]} a2 {[%emt 0:00:01]} 45. Ra1 {[%emt 0:00:00]} Rb2+ {[%emt 0:00:02]} 46. Kg3 {[%emt 0:00:01]} b5 {[%emt 0:00:00][%cal Bb6b5,Bb5b4,Bb4b3][%mdl 32]} 47. Kg4 {[%emt 0:00:03]} b4 {[%emt 0:00:01]} 48. Kh5 {[%emt 0:00:00]} b3 {[%emt 0:00:01]} 49. Rf1+ {[%emt 0:00:07]} Ke7 {[%emt 0:00:01] Weighted Error Value: White=0.72/Black=0.11 (very precise)} 0-1

[Event "Susha Chess Blitz Women 2022"]
[Site "Shusha"]
[Date "2022.09.24"]
[Round "16"]
[White "Dzagnidze, Nana"]
[Black "Arabidze, Meri"]
[Result "0-1"]
[ECO "D36"]
[WhiteElo "2526"]
[BlackElo "2422"]
[Annotator "TA"]
[PlyCount "104"]
[EventDate "2022.09.24"]
[EventType "tourn"]
[EventCountry "AZE"]
[SourceTitle "playchess.com"]
[Source "ChessBase"]
[SourceQuality "1"]
[TimeControl "180+2"]

{[%evp 22,104,9,0,2,0,0,0,17,0,18,-1,0,0,0,-2,0,-20,0,0,29,22,26,-13,14,0,19,14,41,12,17,6,10,-4,89,0,162,-23,166,160,157,160,165,158,145,142,117,-200,-203,-210,-207,-204,0,-105,240,-119,-99,-173,-170,-181,0,0,0,-383,-405,-398,-397,-493,-466,-414,-420,-29984,-12313,-29970,-29972,-29991,-29987,-29987,-29987,-29989,-4794,-29991,-29980,-29981,-29977]} 1. d4 {[%emt 0:00:01]} Nf6 {[%emt 0:00:00]} 2. c4 {[%emt 0:00:02]} e6 {[%emt 0:00:01]} 3. Nc3 {[%emt 0:00:02]} d5 {[%emt 0:00:01]} 4. cxd5 {[%emt 0:00:06]} exd5 {[%emt 0:00:00]} 5. Bg5 {[%emt 0:00:02]} c6 {[%emt 0:00:03]} 6. Qc2 {[%emt 0:00:08]} Be7 {[%emt 0:00:01]} 7. e3 {[%emt 0:00:02]} Nbd7 {[%emt 0:00:03][%cal Bb8d7,Bd7f8,Bf8e6][%mdl 32]} 8. Bd3 {[%emt 0:00:01]} O-O {[%emt 0:00:07]} 9. Nge2 {[%emt 0:00:02]} Re8 {[%emt 0:00:01]} 10. O-O {[%emt 0:00:03]} Nf8 {[%emt 0:00:01]} 11. f3 {[%emt 0:00:15]} g6 $1 {[%emt 0:00:03][%mdl 4] is currently scoring better than 11...Be6.} 12. Rad1 {[%emt 0:00:20]} Ne6 {[%emt 0:00:01] D36: Queen's Gambit Declined: Exchange Variation: Main line (5 Bg5 c6 6 Qc2).} 13. Bh4 {[%emt 0:00:03]} b5 {[%emt 0:00:01]} 14. Bf2 {[%emt 0:00:05] [#]} Nh5 $146 {[%emt 0:00:13] The position is equal.} ({Predecessor:} 14... Bb7 15. Nc1 Rc8 16. Nb3 a6 17. Ne2 c5 18. dxc5 Nxc5 19. Nxc5 Bxc5 20. Qd2 Qe7 {½-½ (59) Wojtaszek,R (2746)-Buhmann,R (2633) Germany 2016}) 15. Kh1 {[%emt 0:00:11]} Bd7 {[%emt 0:00:07]} 16. Bg1 {[%emt 0:00:07]} Rc8 {[%emt 0:00:14]} 17. a3 {[%emt 0:00:36]} a6 {[%emt 0:00:01]} 18. Qb1 {[%emt 0:00:07]} a5 {[%emt 0:00:23]} 19. Bc2 {[%emt 0:00:46]} Bf8 {[%emt 0:00:45]} (19... Bd6 {with more complications.} 20. e4 Qg5 21. Qc1 b4) 20. e4 {[%emt 0:00:12]} Nef4 {[%emt 0:00:01]} 21. Nxf4 {[%emt 0:00:03]} Nxf4 {[%emt 0:00:02]} 22. e5 {[%emt 0:00:09]} f6 {[%emt 0:00:27]} 23. Be3 {[%emt 0:00:08]} Ne6 {[%emt 0:00:05]} 24. f4 {[%emt 0:00:03]} f5 {[%emt 0:00:05]} 25. Bd3 {[%emt 0:00:03]} Rb8 {[%emt 0:00:04]} 26. Ne2 {[%emt 0:00:05][%cal Og2g4]} b4 {[%emt 0:00:11]} 27. a4 {[%emt 0:00:04][%cal Og2g4]} Qb6 {[%emt 0:00:09]} (27... c5 $11 28. dxc5 Bxc5 29. Bxc5 Nxc5) 28. b3 {[%emt 0:00:02]} ({Better is} 28. g4 $1 $16 {[%cal Rg4f5]} Ng7 29. Ng3) 28... Rec8 $2 {[%emt 0:00:08]} (28... c5 $11) 29. Rc1 $2 {[%emt 0:00:01]} (29. g4 $1 $18 {[%cal Rg4f5]} Ng7 30. Ng3) 29... Rc7 $2 {[%emt 0:00:06]} (29... c5 $11 {and Black has nothing to worry.}) 30. g4 $1 $18 {[%emt 0:00:01][%cal Bg2g4,Bg4f5][%mdl 32]} Ng7 {[%emt 0:00:01]} 31. Ng3 $1 {[%emt 0:00:03][%cal Rg4f5]} c5 {[%emt 0:00:11]} 32. gxf5 {[%emt 0:00:04] aiming for f6.} c4 {[%emt 0:00:17]} 33. bxc4 {[%emt 0:00:02]} dxc4 {[%emt 0:00:01]} 34. Bxc4+ {[%emt 0:00:03][%mdl 8192] [#]} (34. Rxc4 $16 Rxc4 35. Bxc4+ Kh8 36. e6 Qc6+ 37. Kg1 Qxc4 38. exd7) 34... Rxc4 $1 $19 {[%emt 0:00:03][%mdl 512]} 35. Rxc4 {[%emt 0:00:01]} Nxf5 {[%emt 0:00:04]} 36. Bf2 {[%emt 0:00:06] Black must now prevent Ne4.} (36. Nxf5 Bxf5 37. Qb2 Qe6 $17) 36... Bc6+ {[%emt 0:00:02]} (36... Nxg3+ $1 $19 37. hxg3 (37. Bxg3 Be6 $17) 37... b3) 37. Kg1 {[%emt 0:00:01]} (37. Ne4 $11 {remains equal.} Bd5 38. Rcc1) 37... Nh4 $2 {[%emt 0:00:01][%mdl 8192] [#] Black is more active.} (37... Nxg3 $17 {and life is bright.} 38. hxg3 Bd5) 38. Be3 $2 {[%emt 0:00:05]} (38. Rxc6 $1 $18 Qxc6 39. Qb3+ (39. Ne4 $2 Nf3+ 40. Kg2 Nd2 $19) 39... Kh8 40. d5) 38... Bd5 $17 {[%emt 0:00:07][%mdl 1024] Black has strong compensation.} 39. Rc2 {[%emt 0:00:01]} (39. Qd3 $17) 39... b3 $19 {[%emt 0:00:01]} 40. Rcf2 {[%emt 0:00:02]} Qb4 $2 {[%emt 0:00:06]} (40... b2 $19 {Hoping for ...Be7.} 41. Ne4 (41. f5 $2 gxf5 42. Nxf5 Qg6+ 43. Ng3 Nf3+ 44. Rxf3 Bxf3 $19) 41... Bxe4 42. Qxe4 b1=Q 43. Rxb1 Qxb1+ 44. Qxb1 Rxb1+ 45. Rf1 Rb4) 41. f5 $11 {[%emt 0:00:01] fxg6 is the strong threat.} Qc3 {[%emt 0:00:02]} 42. Bg5 {[%emt 0:00:02][%mdl 8192]} (42. Qc1 $11 {and White is okay.} Qxc1 43. Bxc1) 42... Nf3+ $19 {[%emt 0:00:01]} 43. Rxf3 {[%emt 0:00:01]} Bxf3 {[%emt 0:00:01] A strong pair of Bishops.} 44. fxg6 {[%emt 0:00:01]} Qxd4+ {[%emt 0:00:01]} 45. Rf2 {[%emt 0:00:01]} h6 {[%emt 0:00:03] The board is on fire.} (45... Bc5 {is a self mate.} 46. gxh7+ Kg7 47. Nf5+ Kh8 48. Nxd4 Rb6 49. Rxf3 Bxd4+ 50. Kg2) 46. Bd2 {[%emt 0:00:05]} (46. Qf5 $19 Qd5 47. Be3 (47. Rxf3 $2 b2 $19) (47. Qxf3 $2 Qxf3 48. Rxf3 b2 $19)) 46... b2 {[%emt 0:00:02] ( -> ...Bc5)} 47. Be1 {[%emt 0:00:04]} Bc5 {[%emt 0:00:01]} 48. Qa2+ {[%emt 0:00:01]} Qd5 {[%emt 0:00:03]} 49. Qb1 {[%emt 0:00:01]} Bxf2+ {[%emt 0:00:01]} 50. Bxf2 {[%emt 0:00:01]} Qc4 {[%emt 0:00:04]} (50... Qd1+ $142 51. Qxd1 Bxd1 52. Ba7 Rb7 53. h4 b1=Q 54. Kg2 Qd3 55. Bb6 Rxb6 56. Nh1 Rxg6+ 57. Kh2 Qe2+ 58. Nf2 Qxf2+ 59. Kh3 Bg4#) 51. Nf1 {[%emt 0:00:03]} Qc1 {[%emt 0:00:03]} 52. Qf5 {[%emt 0:00:01]} Qg5+ {[%emt 0:00:02] Weighted Error Value: White=0.73/Black=0.59} 0-1

[Event "Susha Chess Blitz Women 2022"]
[Site "Shusha"]
[Date "2022.09.24"]
[Round "16"]
[White "Mammadzada, Gunay"]
[Black "Fataliyeva, Ulviyya"]
[Result "0-1"]
[ECO "B11"]
[WhiteElo "2473"]
[BlackElo "2408"]
[Annotator "TA"]
[PlyCount "96"]
[EventDate "2022.09.24"]
[EventType "tourn"]
[EventCountry "AZE"]
[SourceTitle "playchess.com"]
[Source "ChessBase"]
[SourceQuality "1"]
[TimeControl "180+2"]

{[%evp 10,96,27,12,21,23,30,11,8,0,8,-16,-25,-14,12,8,14,-15,-14,-15,-18,-15,-18,-11,-11,-14,-14,-31,0,0,0,0,-7,0,0,0,0,0,28,16,23,0,15,22,61,65,63,62,78,41,289,280,288,281,277,280,270,276,265,236,231,226,325,180,225,0,2,0,0,0,0,0,0,0,551,0,0,0,0,0,0,-1298,-1073,-12838,0,-12835,-12835,-2961,-2843]} 1. e4 {[%emt 0:00:01]} c6 {[%emt 0:00:00]} 2. Nc3 {[%emt 0:00:03]} d5 {[%emt 0:00:02]} 3. Nf3 {[%emt 0:00:01]} Bg4 {[%emt 0:00:13]} 4. h3 {[%emt 0:00:02]} Bxf3 {[%emt 0:00:01]} 5. Qxf3 {[%emt 0:00:01]} e6 {[%emt 0:00:01]} 6. Be2 {[%emt 0:00:09]} Bc5 {[%emt 0:00:18] B11: Caro-Kann: Two Knights Variation.} 7. O-O {[%emt 0:00:11]} Nd7 {[%emt 0:00:04]} 8. Qg3 {[%emt 0:00:12]} Bd4 {[%emt 0:00:20] The position is equal.} (8... Ngf6 {looks sharper.} 9. d3 O-O 10. Bf4 Ne8) 9. exd5 exd5 {[%emt 0:00:14]} 10. d3 {[%emt 0:00:26]} Ne7 {[%emt 0:00:27]} 11. Bf4 {[%emt 0:00:05]} O-O {[%emt 0:00:05]} 12. Bc7 {[%emt 0:00:09]} Qc8 {[%emt 0:00:08]} 13. Bg4 {[%emt 0:00:11]} f5 {[%emt 0:00:12] [#]} 14. Bd6 $146 {[%emt 0:00:26]} ({Predecessor:} 14. Bh5 Nf6 15. Bf3 Ng6 16. Ne2 Bxb2 17. Rab1 Ba3 18. Ba5 Qd7 19. Nd4 b6 20. Bd2 {1-0 (47) Stevic,H (2621)-Bodiroga,P (2399) Zadar 2010}) 14... fxg4 {[%emt 0:00:16]} 15. Bxe7 {[%emt 0:00:05]} Rf7 {[%emt 0:00:04]} 16. Rae1 {[%emt 0:00:12]} gxh3 {[%emt 0:00:07]} 17. Qxh3 {[%emt 0:00:02]} Ne5 {[%emt 0:00:11]} 18. Qh4 {[%emt 0:00:39]} Qg4 {[%emt 0:00:35] The board is on fire.} 19. Qxg4 {[%emt 0:00:07]} Nxg4 {[%emt 0:00:01]} 20. Nd1 {[%emt 0:00:01][%cal Bc3d1,Bd1e3,Be3g4,Bg4h6,Bh6f7][%mdl 32]} Re8 {[%emt 0:00:07]} 21. Bh4 {[%emt 0:00:01][%cal Be7h4,Bh4g3,Bg3d6][%mdl 32]} Ref8 {[%emt 0:00:04]} 22. c3 {[%emt 0:00:04]} Bb6 {[%emt 0:00:01]} 23. d4 {[%emt 0:00:09]} h6 {[%emt 0:00:02]} 24. f3 {[%emt 0:00:04]} Nf6 {[%emt 0:00:06]} 25. Ne3 {[%emt 0:00:04]} g5 {[%emt 0:00:03]} 26. Bg3 {[%emt 0:00:06]} Nh5 {[%emt 0:00:04]} 27. Bd6 {[%emt 0:00:03] [#] Hoping for Ng4.} Rd8 {[%emt 0:00:01]} 28. Be5 {[%emt 0:00:03] And now Ng4 would win.} c5 {[%emt 0:00:01]} 29. Ng4 {[%emt 0:00:02]} cxd4 $2 {[%emt 0:00:03]} (29... Kh7 $14) 30. Nxh6+ $18 {[%emt 0:00:04]} Kf8 {[%emt 0:00:00] Strongly threatening ...dxc3+.} 31. Nxf7 {[%emt 0:00:01]} dxc3+ {[%emt 0:00:01]} 32. Kh2 {[%emt 0:00:09]} Kxf7 {[%emt 0:00:01]} 33. bxc3 {[%emt 0:00:04]} Nf4 {[%emt 0:00:07]} 34. Bxf4 {[%emt 0:00:08]} gxf4 {[%emt 0:00:01][%cal Rd8h8][%mdl 4096] Endgame KRR-KRB} 35. g4 {[%emt 0:00:01] aiming for Re5.} Rc8 {[%emt 0:00:05]} (35... fxg3+ $142 36. Kxg3 Ba5) 36. Rc1 {[%emt 0:00:04]} (36. Re5 $142) 36... Be3 {[%emt 0:00:01]} 37. Rc2 {[%emt 0:00:01]} ({Better is} 37. Rcd1 $18) 37... d4 $11 {[%emt 0:00:01]} 38. Rd1 {[%emt 0:00:03]} Rxc3 {[%emt 0:00:04]} 39. Rxc3 dxc3 {[%emt 0:00:00] KR-KB} 40. Rd7+ {[%emt 0:00:04]} Ke6 $1 {[%emt 0:00:03]} 41. Rc7 {[%emt 0:00:00]} Bd2 {[%emt 0:00:01][%mdl 8192] [#]} (41... Bd4 $11 42. g5 Be5) 42. Kh3 $2 {[%emt 0:00:04]} (42. a4 $1 $18 b6 43. g5) 42... Kd6 $1 {[%emt 0:00:03]} 43. Rc8 {[%emt 0:00:00]} Kd7 $1 {[%emt 0:00:01]} 44. Rc5 {[%emt 0:00:04] Black must now prevent g5.} b6 45. Rd5+ {[%emt 0:00:03][%mdl 8192]} (45. Rc4 $11 b5 46. Rc5) 45... Kc6 {[%emt 0:00:06]} 46. Rd3 {[%emt 0:00:00]} Be1 $2 {[%emt 0:00:03]} (46... c2 $19 47. Rd8 Kc7 48. Rxd2 c1=Q) 47. g5 $2 {[%emt 0:00:02][%mdl 8192]} (47. Rd8 $11 Kc7 48. Re8) 47... c2 $19 {[%emt 0:00:01]} 48. Rd8 {[%emt 0:00:01]} Kc7 {[%emt 0:00:01] Weighted Error Value: White=0.65/Black=0.51} 0-1

[Event "Susha Chess Blitz Women 2022"]
[Site "Shusha"]
[Date "2022.09.24"]
[Round "16"]
[White "Zawadzka, Jolanta"]
[Black "Balajayeva, Khanim"]
[Result "0-1"]
[ECO "C55"]
[WhiteElo "2401"]
[BlackElo "2379"]
[Annotator "TA"]
[PlyCount "74"]
[EventDate "2022.09.24"]
[EventType "tourn"]
[EventCountry "AZE"]
[SourceTitle "playchess.com"]
[Source "ChessBase"]
[SourceQuality "1"]
[TimeControl "180+2"]

{[%evp 15,74,-44,-10,-47,-41,-36,-39,-38,-31,-42,-16,-26,-2,-33,-41,-36,-17,-58,-57,-66,-28,-61,-27,-65,-57,-208,-143,-197,-208,-200,-206,-221,-197,-209,-210,-273,-182,-240,-250,-318,-304,-315,-311,-299,-297,-286,-288,-445,-438,-508,-490,-780,-578,-1162,-1158,-1195,-1142,-1056,-1092,-2812,-2297]} 1. e4 {[%emt 0:00:01]} e5 {[%emt 0:00:00]} 2. Nf3 {[%emt 0:00:01]} Nc6 {[%emt 0:00:01]} 3. d4 {[%emt 0:00:01]} exd4 {[%emt 0:00:01]} 4. Bc4 {[%emt 0:00:01]} Nf6 {[%emt 0:00:02][%cal Bg8f6,Bf6d7,Bd7c5,Bc5e6][%mdl 32]} 5. e5 {[%emt 0:00:00]} d5 {[%emt 0:00:02]} 6. Bb5 {[%emt 0:00:01]} Nd7 {[%emt 0:00:01]} 7. Bxc6 {[%emt 0:00:14]} bxc6 {[%emt 0:00:01]} 8. O-O {[%emt 0:00:06]} Be7 {[%emt 0:00:09]} ({Of course not} 8... Ba6 9. Re1 $11) 9. Qxd4 {[%emt 0:00:13][%cal Oe5e6] C56: Two Knights: 4 d4 exd4 5 0-0 Nxe4.} O-O {[%emt 0:00:08]} 10. Re1 {[%emt 0:00:23]} Nc5 {[%emt 0:00:17] [#]} 11. Nc3 $146 {[%emt 0:00:08] Black is slightly better.} ({Predecessor:} 11. Qc3 Bb7 12. Nd4 Qd7 13. Nd2 Ne6 14. Nf5 Nf4 15. Nxe7+ Qxe7 16. Nf3 Ng6 17. Bg5 {0-1 (39) Stebunov,A (1983)-Sysun,A Petrozavodsk 2012}) 11... Ne6 {[%emt 0:00:01]} 12. Qd3 {[%emt 0:00:12]} Rb8 {[%emt 0:00:04]} 13. b3 {[%emt 0:00:06]} Bb7 {[%emt 0:00:11]} 14. Bb2 {[%emt 0:00:37]} c5 {[%emt 0:00:03][%cal Oc5c4]} 15. Rad1 {[%emt 0:00:01][%cal Rc3d5]} c6 {[%emt 0:00:01][%cal Oc5c4]} 16. Qf5 {[%emt 0:00:11]} Bc8 {[%emt 0:00:05][%cal Bb7c8,Bc8f5,Bf5c2][%mdl 32]} 17. Qd3 {[%emt 0:00:10]} Qd7 {[%emt 0:00:15]} 18. Na4 {[%emt 0:00:06]} Nf4 {[%emt 0:00:05]} (18... c4 $5 {[%cal Rc4d3]} 19. Qd2 h6 $15) 19. Qf1 {[%emt 0:00:14]} Qg4 {[%emt 0:00:04][%cal Oc8a6] [#] And now ...Ba6! would win.} 20. Kh1 $2 {[%emt 0:00:10] This costs White the game.} (20. Bc1 $15) 20... Bf5 {[%emt 0:00:10]} 21. h3 {[%emt 0:00:06]} (21. Rc1 $17 {might work better.}) 21... Qh5 $19 {[%emt 0:00:17]} 22. Nh2 {[%emt 0:00:14]} Bxc2 {[%emt 0:00:09] Hoping for ...c4.} 23. Rd2 {[%emt 0:00:01]} Be4 {[%emt 0:00:07]} 24. f3 {[%emt 0:00:01] [#]} Bg6 {[%emt 0:00:03]} 25. Rc1 {[%emt 0:00:09]} Ne6 {[%emt 0:00:21][%cal Oc5c4] Strongly threatening ...c4!} 26. Ba3 {[%emt 0:00:02]} (26. f4 $142) 26... Bg5 {[%emt 0:00:05]} ({Not} 26... Qxe5 $2 27. Nxc5 Rfe8 28. Nd7) 27. Rdd1 {[%emt 0:00:12]} Bxc1 {[%emt 0:00:01]} 28. Rxc1 {[%emt 0:00:02]} Qxe5 {[%emt 0:00:02]} 29. Nxc5 {[%emt 0:00:02]} Nxc5 {[%emt 0:00:03]} 30. Bxc5 {[%emt 0:00:01]} Rfe8 {[%emt 0:00:01]} 31. Ng4 {[%emt 0:00:04]} (31. Bxa7 $142 Ra8 32. Qf2) 31... Qb2 {[%emt 0:00:09] Black is clearly winning.} 32. Ra1 {[%emt 0:00:06]} d4 {[%emt 0:00:07][%cal Bd5d4,Bd4d3,Bd3d2][%mdl 32]} 33. Qd1 {[%emt 0:00:04]} (33. Qc1 $142 Qxc1+ 34. Rxc1) 33... Rbd8 {[%emt 0:00:10]} 34. Bxa7 {[%emt 0:00:02]} h5 {[%emt 0:00:02]} 35. Nh2 {[%emt 0:00:03]} d3 {[%emt 0:00:02]} 36. Nf1 {[%emt 0:00:03]} d2 {[%emt 0:00:06]} 37. Be3 {[%emt 0:00:03]} Bc2 {[%emt 0:00:03] Weighted Error Value: White=0.73/Black=0.24 (precise)} 0-1